fUST/lending_fUST_20250906
["ID","MTS","AMOUNT","RATE_DAILY","PERIOD"]
[383729984,1757103044879,-151.0,0.00014246,2]
[383729987,1757103044891,-1428.8,0.00014246,2]
[383729989,1757103044901,-1108.64,0.00014246,2]
[383729991,1757103044914,-480.0,0.00014246,2]
[383729994,1757103044928,-865.75,0.00014246,2]
[383729996,1757103044943,-4093.04,0.00014246,2]
[383729998,1757103044955,-534.04,0.00014246,2]
[383730001,1757103044968,-611.61,0.00014246,2]
[383730003,1757103044980,-480.0,0.00014246,2]
[383730005,1757103044992,-555.37,0.00014246,2]
[383730007,1757103045002,-480.0,0.00014246,2]
[383730009,1757103045014,-480.0,0.00014246,2]
[383730012,1757103045026,-2005.54,0.00014246,2]
[383730014,1757103045037,-695.85,0.00014246,2]
[383730016,1757103045048,-480.0,0.00014246,2]
[383730018,1757103045059,-480.0,0.00014246,2]
[383730021,1757103045071,-641.0,0.00014246,2]
[383730023,1757103045082,-674.5,0.00014246,2]
[383730025,1757103045093,-480.0,0.00014246,2]
[383730027,1757103045105,-480.0,0.00014246,2]
[383730029,1757103045116,-2484.53,0.00014246,2]
[383730032,1757103045128,-480.0,0.00014246,2]
[383730034,1757103045140,-1101.11,0.00014246,2]
[383730036,1757103045151,-480.0,0.00014246,2]
[383730038,1757103045163,-480.0,0.00014246,2]
[383730041,1757103045176,-698.74,0.00014246,2]
[383730043,1757103045187,-480.0,0.00014246,2]
[383730045,1757103045198,-1021.02,0.00014246,2]
[383730047,1757103045209,-480.0,0.00014246,2]
[383730049,1757103045221,-480.0,0.00014246,2]
[383730052,1757103045233,-480.0,0.00014246,2]
[383730054,1757103045244,-480.0,0.00014246,2]
[383730056,1757103045256,-489.39,0.00014246,2]
[383730058,1757103045268,-499.95,0.00014246,2]
[383730061,1757103045279,-480.0,0.00014246,2]
[383730063,1757103045291,-480.0,0.00014246,2]
[383730065,1757103045304,-751.81,0.00014246,2]
[383730067,1757103045315,-1850.07,0.00014246,2]
[383730070,1757103045327,-480.0,0.00014246,2]
[383730072,1757103045338,-480.0,0.00014246,2]
[383730074,1757103045350,-480.0,0.00014246,2]
[383730076,1757103045361,-480.0,0.00014246,2]
[383730079,1757103045373,-480.0,0.00014246,2]
[383730081,1757103045384,-480.0,0.00014246,2]
[383730083,1757103045397,-480.0,0.00014246,2]
[383730086,1757103045409,-480.0,0.00014246,2]
[383730088,1757103045420,-281.36,0.00014246,2]
[383730090,1757103045431,-480.0,0.00014246,2]
[383730092,1757103045443,-689.34,0.00014246,2]
[383730095,1757103045455,-934.43,0.00014246,2]
[383730097,1757103045466,-482.3856939,0.00014246,2]
[383730099,1757103045477,-480.0,0.00014246,2]
[383730101,1757103045488,-2351.15,0.00014246,2]
[383730103,1757103045500,-480.0,0.00014246,2]
[383730106,1757103045512,-480.0,0.00014246,2]
[383730108,1757103045523,-1182.5,0.00014246,2]
[383730110,1757103045535,-598.75,0.00014246,2]
[383730112,1757103045546,-480.0,0.00014246,2]
[383730115,1757103045557,-480.0,0.00014246,2]
[383730117,1757103045568,-480.0,0.00014246,2]
[383730119,1757103045580,-500.0,0.00014273,2]
[383730121,1757103045592,-500.0,0.00014273,2]
[383730123,1757103045604,-500.0,0.00014273,2]
[383730126,1757103045616,-160.0,0.00014466,2]
[383730128,1757103045627,-203.18701864,0.00014466,2]
[383730130,1757103045639,-160.0,0.00014466,2]
[383730132,1757103045651,-160.0,0.00014466,2]
[383730135,1757103045662,-480.0,0.0001452,2]
[383730137,1757103045674,-269.18,0.0001452,2]
[383730139,1757103045685,-480.0,0.0001452,2]
[383730141,1757103045697,-480.0,0.0001452,2]
[383730144,1757103045710,-706.16,0.0001452,2]
[383730146,1757103045722,-480.0,0.0001452,2]
[383730148,1757103045734,-480.0,0.0001452,2]
[383730150,1757103045746,-152.100789,0.0001452,2]
[383730153,1757103045757,-545.87579054,0.0001452,2]
[383730155,1757103045769,-151.0,0.0001452,2]
[383730172,1757103045902,-364.17,0.0001452,2]
[383730175,1757103045934,-151.967764,0.0001452,2]
[383730177,1757103045945,-151.0,0.0001452,2]
[383730180,1757103045955,-480.0,0.0001452,2]
[383730182,1757103045964,-482.0,0.0001452,2]
[383730185,1757103045973,-151.0,0.0001452,2]
[383730188,1757103045983,-480.0,0.0001452,2]
[383730191,1757103045992,-614.49,0.0001452,2]
[383730193,1757103046002,-151.0,0.0001452,2]
[383730195,1757103046011,-151.0,0.0001452,2]
[383730197,1757103046022,-170.445601,0.0001452,2]
[383730199,1757103046031,-480.0,0.0001452,2]
[383730201,1757103046041,-480.0,0.0001452,2]
[383730202,1757103046051,-480.0,0.0001452,2]
[383730203,1757103046060,-151.0,0.0001452,2]
[383730204,1757103046070,-151.0,0.0001452,2]
[383730205,1757103046080,-151.0,0.0001452,2]
[383730206,1757103046090,-480.0,0.0001452,2]
[383730207,1757103046101,-240.51,0.0001452,2]
[383730208,1757103046110,-480.0,0.0001452,2]
[383730209,1757103046120,-589.91,0.0001452,2]
[383730210,1757103046129,-487.74878256,0.0001452,2]
[383730211,1757103046139,-252.26010928,0.0001452,2]
[383730212,1757103046150,-480.0,0.0001452,2]
[383730213,1757103046159,-480.0,0.0001452,2]
[383730214,1757103046169,-480.0,0.0001452,2]
[383730215,1757103046180,-695.74,0.0001452,2]
[383730216,1757103046189,-513.79,0.0001452,2]
[383730217,1757103046199,-569.37,0.0001452,2]
[383730219,1757103046208,-818.23,0.0001452,2]
[383730221,1757103046218,-480.0,0.0001452,2]
[383730223,1757103046227,-280.09,0.0001452,2]
[383730225,1757103046237,-480.0,0.0001452,2]
[383730227,1757103046246,-480.0,0.0001452,2]
[383730229,1757103046256,-480.0,0.0001452,2]
[383730231,1757103046266,-480.0,0.0001452,2]
[383730233,1757103046275,-480.0,0.0001452,2]
[383730235,1757103046285,-1090.3,0.0001452,2]
[383730237,1757103046294,-2838.89,0.0001452,2]
[383730239,1757103046304,-1570.51,0.0001452,2]
[383730241,1757103046313,-441.53,0.0001452,2]
[383730243,1757103046323,-620.07,0.0001452,2]
[383730245,1757103046334,-641.06,0.0001452,2]
[383730247,1757103046343,-480.0,0.0001452,2]
[383730249,1757103046353,-480.0,0.0001452,2]
[383730251,1757103046362,-480.0,0.0001452,2]
[383730253,1757103046372,-480.0,0.0001452,2]
[383730255,1757103046381,-480.0,0.0001452,2]
[383730257,1757103046390,-1179.32,0.0001452,2]
[383730259,1757103046399,-633.15,0.0001452,2]
[383730261,1757103046409,-480.0,0.0001452,2]
[383730263,1757103046418,-480.0,0.0001452,2]
[383730265,1757103046427,-480.0,0.0001452,2]
[383730267,1757103046437,-302.0,0.0001452,2]
[383730269,1757103046447,-701.9,0.0001452,2]
[383730271,1757103046456,-480.0,0.0001452,2]
[383730273,1757103046465,-777.67,0.0001452,2]
[383730275,1757103046474,-3459.85,0.0001452,2]
[383730277,1757103046483,-666.07,0.0001452,2]
[383730279,1757103046492,-1435.86,0.0001452,2]
[383730281,1757103046501,-480.0,0.0001452,2]
[383730283,1757103046511,-687.92,0.0001452,2]
[383730285,1757103046519,-480.0,0.0001452,2]
[383730287,1757103046529,-538.97,0.0001452,2]
[383730289,1757103046538,-480.0,0.0001452,2]
[383730291,1757103046547,-480.0,0.0001452,2]
[383730293,1757103046557,-626.27,0.0001452,2]
[383730295,1757103046566,-480.0,0.0001452,2]
[383730297,1757103046575,-480.0,0.0001452,2]
[383730299,1757103046585,-480.0,0.0001452,2]
[383730301,1757103046594,-480.0,0.0001452,2]
[383730303,1757103046604,-480.0,0.0001452,2]
[383730305,1757103046614,-319.62515827,0.0001452,2]
[383730307,1757103046623,-665.9,0.0001452,2]
[383730309,1757103046633,-640.34,0.0001452,2]
[383730311,1757103046643,-480.0,0.0001452,2]
[383730313,1757103046652,-790.66,0.0001452,2]
[383730315,1757103046661,-480.0,0.0001452,2]
[383730316,1757103046671,-480.0,0.0001452,2]
[383730318,1757103046680,-1666.92,0.0001452,2]
[383730320,1757103046689,-480.0,0.0001452,2]
[383730322,1757103046698,-480.0,0.0001452,2]
[383730324,1757103046707,-2180.69,0.0001452,2]
[383730326,1757103046716,-480.0,0.0001452,2]
[383730328,1757103046726,-7203.67,0.0001452,2]
[383730330,1757103046735,-480.0,0.0001452,2]
[383730332,1757103046744,-1225.97,0.0001452,2]
[383730334,1757103046753,-480.0,0.0001452,2]
[383730336,1757103046763,-480.0,0.0001452,2]
[383730338,1757103046773,-480.0,0.0001452,2]
[383730340,1757103046783,-1428.8,0.0001452,2]
[383730342,1757103046792,-1108.64,0.0001452,2]
[383730344,1757103046801,-480.0,0.0001452,2]
[383730346,1757103046810,-865.75,0.0001452,2]
[383730348,1757103046820,-4093.04,0.0001452,2]
[383730350,1757103046829,-534.04,0.0001452,2]
[383730352,1757103046838,-611.61,0.0001452,2]
[383730354,1757103046848,-480.0,0.0001452,2]
[383730355,1757103046857,-555.37,0.0001452,2]
[383730357,1757103046868,-480.0,0.0001452,2]
[383730359,1757103046880,-480.0,0.0001452,2]
[383730361,1757103046891,-2005.54,0.0001452,2]
[383730363,1757103046901,-695.85,0.0001452,2]
[383730365,1757103046910,-480.0,0.0001452,2]
[383730367,1757103046921,-641.0,0.0001452,2]
[383730369,1757103046930,-674.5,0.0001452,2]
[383730371,1757103046939,-361.76560957,0.0001452,2]
[383730373,1757103046950,-2484.53,0.0001452,2]
[383730375,1757103046960,-480.0,0.0001452,2]
[383730377,1757103046970,-1101.11,0.0001452,2]
[383730379,1757103046980,-480.0,0.0001452,2]
[383730381,1757103046989,-480.0,0.0001452,2]
[383730383,1757103047000,-698.74,0.0001452,2]
[383730385,1757103047009,-480.0,0.0001452,2]
[383730387,1757103047018,-1021.02,0.0001452,2]
[383730389,1757103047027,-480.0,0.0001452,2]
[383730391,1757103047037,-480.0,0.0001452,2]
[383730393,1757103047046,-480.0,0.0001452,2]
[383730394,1757103047055,-499.95,0.0001452,2]
[383730396,1757103047065,-489.39,0.0001452,2]
[383730398,1757103047075,-351.64953422,0.0001452,2]
[383730400,1757103047084,-751.81,0.0001452,2]
[383730402,1757103047094,-1850.07,0.0001452,2]
[383730404,1757103047104,-480.0,0.0001452,2]
[383730406,1757103047114,-480.0,0.0001452,2]
[383730408,1757103047123,-480.0,0.0001452,2]
[383730409,1757103047132,-480.0,0.0001452,2]
[383730411,1757103047141,-480.0,0.0001452,2]
[383730413,1757103047152,-480.0,0.0001452,2]
[383730415,1757103047161,-480.0,0.0001452,2]
[383730417,1757103047170,-689.34,0.0001452,2]
[383730419,1757103047180,-934.43,0.0001452,2]
[383730421,1757103047189,-480.0,0.0001452,2]
[383730423,1757103047199,-2351.15,0.0001452,2]
[383730425,1757103047208,-480.0,0.0001452,2]
[383730427,1757103047217,-480.0,0.0001452,2]
[383730429,1757103047226,-1182.5,0.0001452,2]
[383730430,1757103047236,-598.75,0.0001452,2]
[383730432,1757103047245,-480.0,0.0001452,2]
[383730434,1757103047255,-500.0,0.00014521,2]
[383730436,1757103047264,-500.0,0.00014521,2]
[383730438,1757103047274,-400.72478266,0.00014521,2]
[383730440,1757103047283,-1000.0,0.00014521,2]
[383730442,1757103047292,-500.0,0.00014521,2]
[383730444,1757103047303,-1000.0,0.00014521,2]
[383730446,1757103047313,-1000.0,0.00014521,2]
[383730448,1757103047322,-1000.0,0.00014521,2]
[383730450,1757103047331,-1000.0,0.00014521,2]
[383730452,1757103047340,-373.88,0.00014668,2]
[383730454,1757103047350,-151.0,0.00014768,2]
[383730456,1757103047360,-151.0,0.00014768,2]
[383730458,1757103047370,-1500.0,0.00014768,2]
[383730460,1757103047379,-500.0,0.00014768,2]
[383730462,1757103047389,-1500.0,0.00014768,2]
[383730464,1757103047398,-1500.0,0.00014768,2]
[383730466,1757103047408,-1500.0,0.00014768,2]
[383730467,1757103047419,-480.0,0.00014794,2]
[383730469,1757103047428,-189.53,0.00014794,2]
[383730471,1757103047438,-480.0,0.00014794,2]
[383730473,1757103047447,-706.16,0.00014794,2]
[383730475,1757103047457,-151.0,0.00014794,2]
[383730477,1757103047466,-151.0,0.00014794,2]
[383730479,1757103047475,-151.0,0.00014794,2]
[383730481,1757103047484,-480.0,0.00014794,2]
[383730483,1757103047493,-480.0,0.00014794,2]
[383730485,1757103047503,-482.0,0.00014794,2]
[383730487,1757103047512,-236.94794204,0.00014794,2]
[383730489,1757103047521,-614.49,0.00014794,2]
[383730490,1757103047531,-480.0,0.00014794,2]
[383730492,1757103047540,-480.0,0.00014794,2]
[383730494,1757103047549,-480.0,0.00014794,2]
[383730496,1757103047558,-331.42849653,0.00014794,2]
[383730498,1757103047568,-480.0,0.00014794,2]
[383730500,1757103047578,-589.91,0.00014794,2]
[383730502,1757103047587,-480.0,0.00014794,2]
[383730504,1757103047596,-480.0,0.00014794,2]
[383730506,1757103047606,-695.74,0.00014794,2]
[383730507,1757103047616,-513.79,0.00014794,2]
[383730509,1757103047625,-569.37,0.00014794,2]
[383730511,1757103047635,-818.23,0.00014794,2]
[383730513,1757103047645,-480.0,0.00014794,2]
[383730515,1757103047654,-480.0,0.00014794,2]
[383730517,1757103047664,-480.0,0.00014794,2]
[383730519,1757103047673,-480.0,0.00014794,2]
[383730521,1757103047683,-1090.3,0.00014794,2]
[383730523,1757103047692,-2838.89,0.00014794,2]
[383730525,1757103047702,-1570.51,0.00014794,2]
[383730527,1757103047711,-620.07,0.00014794,2]
[383730529,1757103047722,-641.06,0.00014794,2]
[383730531,1757103047731,-480.0,0.00014794,2]
[383730533,1757103047741,-480.0,0.00014794,2]
[383730535,1757103047750,-480.0,0.00014794,2]
[383730537,1757103047760,-1179.32,0.00014794,2]
[383730539,1757103047770,-633.15,0.00014794,2]
[383730541,1757103047779,-480.0,0.00014794,2]
[383730543,1757103047788,-480.0,0.00014794,2]
[383730545,1757103047798,-512.5,0.00014794,2]
[383730547,1757103047807,-701.9,0.00014794,2]
[383730548,1757103047817,-623.24,0.00014794,2]
[383730550,1757103047827,-777.67,0.00014794,2]
[383730552,1757103047836,-3459.85,0.00014794,2]
[383730554,1757103047846,-666.07,0.00014794,2]
[383730556,1757103047856,-1435.86,0.00014794,2]
[383730558,1757103047866,-480.0,0.00014794,2]
[383730560,1757103047879,-687.92,0.00014794,2]
[383730562,1757103047888,-156.35,0.00014794,2]
[383730564,1757103047898,-480.0,0.00014794,2]
[383730566,1757103047907,-626.27,0.00014794,2]
[383730568,1757103047918,-420.88699102,0.00014794,2]
[383730570,1757103047928,-480.0,0.00014794,2]
[383730572,1757103047937,-615.99,0.00014794,2]
[383730574,1757103047947,-665.9,0.00014794,2]
[383730576,1757103047956,-640.34,0.00014794,2]
[383730578,1757103047966,-259.18,0.00014794,2]
[383730580,1757103047975,-790.66,0.00014794,2]
[383730582,1757103047985,-1666.92,0.00014794,2]
[383730584,1757103047995,-480.0,0.00014794,2]
[383730585,1757103048004,-480.0,0.00014794,2]
[383730587,1757103048014,-2180.69,0.00014794,2]
[383730589,1757103048023,-480.0,0.00014794,2]
[383730591,1757103048032,-7203.67,0.00014794,2]
[383730593,1757103048043,-1225.97,0.00014794,2]
[383730595,1757103048052,-480.0,0.00014794,2]
[383730597,1757103048062,-480.0,0.00014794,2]
[383730599,1757103048072,-480.0,0.00014794,2]
[383730601,1757103048082,-1428.8,0.00014794,2]
[383730602,1757103048091,-1108.64,0.00014794,2]
[383730604,1757103048101,-480.0,0.00014794,2]
[383730606,1757103048111,-865.75,0.00014794,2]
[383730608,1757103048122,-4093.04,0.00014794,2]
[383730610,1757103048131,-534.04,0.00014794,2]
[383730612,1757103048142,-611.61,0.00014794,2]
[383730614,1757103048151,-480.0,0.00014794,2]
[383730616,1757103048160,-555.37,0.00014794,2]
[383730618,1757103048170,-480.0,0.00014794,2]
[383730620,1757103048179,-2005.54,0.00014794,2]
[383730622,1757103048188,-695.85,0.00014794,2]
[383730624,1757103048198,-480.0,0.00014794,2]
[383730626,1757103048207,-641.0,0.00014794,2]
[383730628,1757103048217,-674.5,0.00014794,2]
[383730630,1757103048225,-2484.53,0.00014794,2]
[383730632,1757103048234,-480.0,0.00014794,2]
[383730634,1757103048244,-1101.11,0.00014794,2]
[383730636,1757103048254,-480.0,0.00014794,2]
[383730638,1757103048263,-480.0,0.00014794,2]
[383730639,1757103048272,-698.74,0.00014794,2]
[383730641,1757103048282,-480.0,0.00014794,2]
[383730643,1757103048291,-151.0,0.00014794,2]
[383730645,1757103048301,-1021.02,0.00014794,2]
[383730647,1757103048311,-377.46,0.00014794,2]
[383730649,1757103048320,-551.94,0.00014794,2]
[383730651,1757103048330,-480.0,0.00014794,2]
[383730653,1757103048339,-499.95,0.00014794,2]
[383730655,1757103048348,-489.39,0.00014794,2]
[383730657,1757103048358,-751.81,0.00014794,2]
[383730659,1757103048368,-1850.07,0.00014794,2]
[383730661,1757103048377,-480.0,0.00014794,2]
[383730663,1757103048387,-480.0,0.00014794,2]
[383730665,1757103048396,-480.0,0.00014794,2]
[383730667,1757103048405,-480.0,0.00014794,2]
[383730669,1757103048414,-480.0,0.00014794,2]
[383730671,1757103048423,-480.0,0.00014794,2]
[383730673,1757103048433,-151.0,0.00014794,2]
[383730674,1757103048442,-480.0,0.00014794,2]
[383730676,1757103048452,-689.34,0.00014794,2]
[383730678,1757103048461,-934.43,0.00014794,2]
[383730680,1757103048471,-480.0,0.00014794,2]
[383730682,1757103048480,-2351.15,0.00014794,2]
[383730684,1757103048492,-151.0,0.00014794,2]
[383730686,1757103048511,-480.0,0.00014794,2]
[383730688,1757103048522,-377.94526038,0.00014794,2]
[383730690,1757103048531,-1182.5,0.00014794,2]
[383730692,1757103048540,-598.75,0.00014794,2]
[383730694,1757103048549,-151.0,0.00014794,2]
[383730696,1757103048558,-480.0,0.00014794,2]
[383730709,1757103048675,-151.0,0.00014794,2]
[383730711,1757103048686,-151.0,0.00014794,2]
[383730713,1757103048695,-1000.0,0.00014821,2]
[383730714,1757103048704,-1000.0,0.00014821,2]
[383730716,1757103048714,-1000.0,0.00014821,2]
[383730718,1757103048723,-798.0,0.00014874,2]
[383730720,1757103048732,-300.0,0.00014875,2]
[383730722,1757103048742,-300.0,0.00014875,2]
[383730724,1757103048752,-387.0,0.00014875,2]
[383730727,1757103048769,-408.0,0.00014875,2]
[383730729,1757103048781,-18064.919652,0.00014967,2]
[383730731,1757103048792,-151.0,0.00014967,2]
[383730733,1757103048802,-480.0,0.00015068,2]
[383730735,1757103048812,-601.02813001,0.00015068,2]
[383730737,1757103048822,-706.16,0.00015068,2]
[383730739,1757103048832,-480.0,0.00015068,2]
[383730741,1757103048842,-480.0,0.00015068,2]
[383730743,1757103048851,-482.0,0.00015068,2]
[383730745,1757103048861,-614.49,0.00015068,2]
[383730748,1757103048877,-480.0,0.00015068,2]
[383730749,1757103048887,-480.0,0.00015068,2]
[383730751,1757103048898,-480.0,0.00015068,2]
[383730753,1757103048908,-480.0,0.00015068,2]
[383730755,1757103048920,-589.91,0.00015068,2]
[383730756,1757103048930,-151.0,0.00015068,2]
[383730758,1757103048940,-151.0,0.00015068,2]
[383730760,1757103048951,-151.0,0.00015068,2]
[383730762,1757103048962,-151.0,0.00015068,2]
[383730764,1757103048972,-480.0,0.00015068,2]
[383730766,1757103048982,-151.0,0.00015068,2]
[383730768,1757103048992,-480.0,0.00015068,2]
[383730770,1757103049002,-695.74,0.00015068,2]
[383730772,1757103049013,-513.79,0.00015068,2]
[383730774,1757103049024,-151.0,0.00015068,2]
[383730776,1757103049034,-569.37,0.00015068,2]
[383730777,1757103049044,-818.23,0.00015068,2]
[383730779,1757103049054,-480.0,0.00015068,2]
[383730781,1757103049065,-480.0,0.00015068,2]
[383730783,1757103049076,-480.0,0.00015068,2]
[383730785,1757103049086,-1090.3,0.00015068,2]
[383730787,1757103049097,-2838.89,0.00015068,2]
[383730788,1757103049107,-1570.51,0.00015068,2]
[383730789,1757103049117,-151.0,0.00015068,2]
[383730790,1757103049127,-620.07,0.00015068,2]
[383730791,1757103049138,-203.635943,0.00015068,2]
[383730792,1757103049149,-641.06,0.00015068,2]
[383730793,1757103049159,-203.635943,0.00015068,2]
[383730794,1757103049170,-480.0,0.00015068,2]
[383730795,1757103049180,-480.0,0.00015068,2]
[383730796,1757103049190,-1179.32,0.00015068,2]
[383730797,1757103049200,-151.0,0.00015068,2]
[383730798,1757103049210,-633.15,0.00015068,2]
[383730799,1757103049220,-480.0,0.00015068,2]
[383730800,1757103049230,-480.0,0.00015068,2]
[383730801,1757103049241,-701.9,0.00015068,2]
[383730802,1757103049251,-777.67,0.00015068,2]
[383730803,1757103049261,-3459.85,0.00015068,2]
[383730804,1757103049271,-666.07,0.00015068,2]
[383730805,1757103049281,-1435.86,0.00015068,2]
[383730806,1757103049291,-480.0,0.00015068,2]
[383730807,1757103049301,-687.92,0.00015068,2]
[383730808,1757103049311,-480.0,0.00015068,2]
[383730809,1757103049321,-626.27,0.00015068,2]
[383730810,1757103049330,-161.64,0.00015068,2]
[383730811,1757103049340,-665.9,0.00015068,2]
[383730812,1757103049350,-640.34,0.00015068,2]
[383730813,1757103049360,-790.66,0.00015068,2]
[383730814,1757103049370,-1666.92,0.00015068,2]
[383730815,1757103049380,-480.0,0.00015068,2]
[383730817,1757103049389,-480.0,0.00015068,2]
[383730819,1757103049399,-2180.69,0.00015068,2]
[383730821,1757103049408,-480.0,0.00015068,2]
[383730823,1757103049418,-7203.67,0.00015068,2]
[383730825,1757103049427,-1225.97,0.00015068,2]
[383730827,1757103049437,-480.0,0.00015068,2]
[383730829,1757103049446,-480.0,0.00015068,2]
[383730831,1757103049456,-1428.8,0.00015068,2]
[383730833,1757103049466,-1108.64,0.00015068,2]
[383730835,1757103049475,-865.75,0.00015068,2]
[383730837,1757103049485,-4093.04,0.00015068,2]
[383730839,1757103049495,-534.04,0.00015068,2]
[383730841,1757103049505,-611.61,0.00015068,2]
[383730843,1757103049514,-480.0,0.00015068,2]
[383730845,1757103049524,-555.37,0.00015068,2]
[383730847,1757103049545,-480.0,0.00015068,2]
[383730849,1757103049555,-2005.54,0.00015068,2]
[383730851,1757103049565,-695.85,0.00015068,2]
[383730853,1757103049574,-230.04,0.00015068,2]
[383730855,1757103049584,-641.0,0.00015068,2]
[383730857,1757103049593,-674.5,0.00015068,2]
[383730859,1757103049602,-2484.53,0.00015068,2]
[383730861,1757103049611,-416.04,0.00015068,2]
[383730863,1757103049621,-1101.11,0.00015068,2]
[383730865,1757103049631,-480.0,0.00015068,2]
[383730867,1757103049640,-480.0,0.00015068,2]
[383730869,1757103049649,-698.74,0.00015068,2]
[383730871,1757103049660,-480.0,0.00015068,2]
[383730873,1757103049670,-1021.02,0.00015068,2]
[383730875,1757103049680,-480.0,0.00015068,2]
[383730877,1757103049689,-499.95,0.00015068,2]
[383730879,1757103049698,-489.39,0.00015068,2]
[383730881,1757103049707,-751.81,0.00015068,2]
[383730883,1757103049717,-1850.07,0.00015068,2]
[383730885,1757103049727,-480.0,0.00015068,2]
[383730887,1757103049736,-480.0,0.00015068,2]
[383730889,1757103049746,-480.0,0.00015068,2]
[383730891,1757103049756,-480.0,0.00015068,2]
[383730894,1757103049766,-480.0,0.00015068,2]
[383730896,1757103049776,-480.0,0.00015068,2]
[383730898,1757103049786,-689.34,0.00015068,2]
[383730900,1757103049795,-161.87,0.00015068,2]
[383730902,1757103049805,-934.43,0.00015068,2]
[383730904,1757103049814,-480.0,0.00015068,2]
[383730906,1757103049824,-2351.15,0.00015068,2]
[383730908,1757103049833,-167.86,0.00015068,2]
[383730910,1757103049843,-1182.5,0.00015068,2]
[383730912,1757103049854,-598.75,0.00015068,2]
[383730914,1757103049863,-480.0,0.00015068,2]
[383730916,1757103049881,-501.49623136,0.00015068,2]
[383730918,1757103049891,-1500.0,0.00015068,2]
[383730920,1757103049901,-500.0,0.00015068,2]
[383730922,1757103049912,-1500.0,0.00015068,2]
[383730924,1757103049922,-34631.28248131,0.00015093,2]
[383730926,1757103049932,-1436.0134946,0.00015254,2]
[383730928,1757103049941,-501.90916831,0.00015316,2]
[383730930,1757103049953,-2000.0,0.00015316,2]
[383730932,1757103049963,-470.1428095,0.00015316,2]
[383730934,1757103049972,-480.0,0.00015342,2]
[383730936,1757103049982,-706.16,0.00015342,2]
[383730938,1757103049991,-480.0,0.00015342,2]
[383730940,1757103050000,-480.0,0.00015342,2]
[383730942,1757103050009,-482.0,0.00015342,2]
[383730944,1757103050019,-614.49,0.00015342,2]
[383730946,1757103050028,-480.0,0.00015342,2]
[383730948,1757103050038,-480.0,0.00015342,2]
[383730950,1757103050047,-429.34415674,0.00015342,2]
[383730952,1757103050056,-344.838,0.00015342,2]
[383730954,1757103050066,-151.0,0.00015342,2]
[383730956,1757103050075,-151.0,0.00015342,2]
[383730958,1757103050085,-232.3969,0.00015342,2]
[383730960,1757103050094,-480.0,0.00015342,2]
[383730962,1757103050104,-589.91,0.00015342,2]
[383730964,1757103050113,-480.0,0.00015342,2]
[383730966,1757103050124,-695.74,0.00015342,2]
[383730968,1757103050133,-480.0,0.00015342,2]
[383730970,1757103050142,-513.79,0.00015342,2]
[383730972,1757103050151,-569.37,0.00015342,2]
[383730974,1757103050160,-818.23,0.00015342,2]